[Event "Titled Tuesday Blitz June 13 Early 2023"]
[White "campochess"]
[Black "Yeritsyan, Hayk"]
[BlackFideId "13307320"]
[WhiteElo "2199"]
[BlackElo "2505"]
[Result "0-1"]
[Round "4"]
[TimeControl "180+2"]
[Date "2023.06.13"]
[WhiteClock "0:00:00"]
[BlackClock "0:00:17"]
[Board "100"]

1. Nc3 {[%clk 0:02:59]}  d5 {[%clk 0:02:56]} 2. d4 {[%clk 0:02:58]}  Nf6 {[%clk 0:02:55]} 3. Bf4 {[%clk 0:02:58]}  c6 {[%clk 0:02:52]} 4. e3 {[%clk 0:02:58]}  g6 {[%clk 0:02:50]} 5. h3 {[%clk 0:02:55]}  Bg7 {[%clk 0:02:50]} 6. Nf3 {[%clk 0:02:55]}  O-O {[%clk 0:02:49]} 7. Be2 {[%clk 0:02:55]}  Na6 {[%clk 0:02:47]} 8. Ne5 {[%clk 0:02:54]}  Nc7 {[%clk 0:02:46]} 9. O-O {[%clk 0:02:53]}  Ne6 {[%clk 0:02:44]} 10. Bh2 {[%clk 0:02:51]}  Ng5 {[%clk 0:02:43]} 11. Bf4 {[%clk 0:02:32]}  Ne6 {[%clk 0:02:38]} 12. Bh2 {[%clk 0:02:27]}  Nd7 {[%clk 0:02:37]} 13. f4 {[%clk 0:02:26]}  Nxe5 {[%clk 0:02:35]} 14. dxe5 {[%clk 0:02:25]}  Qb6 {[%clk 0:02:32]} 15. Qd2 {[%clk 0:02:19]}  a5 {[%clk 0:01:47]} 16. Kh1 {[%clk 0:02:18]}  Nc5 {[%clk 0:01:45]} 17. Bg1 {[%clk 0:02:16]}  Ne4 {[%clk 0:01:43]} 18. Nxe4 {[%clk 0:02:14]}  dxe4 {[%clk 0:01:44]} 19. Qc3 {[%clk 0:02:09]}  Be6 {[%clk 0:01:40]} 20. b3 {[%clk 0:02:08]}  Qb4 {[%clk 0:01:35]} 21. Qb2 {[%clk 0:02:00]}  Qd2 {[%clk 0:01:31]} 22. Rfe1 {[%clk 0:01:53]}  a4 {[%clk 0:01:25]} 23. Rad1 {[%clk 0:01:53]}  a3 {[%clk 0:01:15]} 24. Rxd2 {[%clk 0:01:37]}  axb2 {[%clk 0:01:14]} 25. Rb1 {[%clk 0:01:36]}  Rxa2 {[%clk 0:01:13]} 26. c4 {[%clk 0:01:37]}  f6 {[%clk 0:01:10]} 27. Rdxb2 {[%clk 0:01:28]}  Rxb2 {[%clk 0:01:10]} 28. Rxb2 {[%clk 0:01:28]}  fxe5 {[%clk 0:01:11]} 29. Ra2 {[%clk 0:01:21]}  exf4 {[%clk 0:01:07]} 30. exf4 {[%clk 0:01:21]}  Rd8 {[%clk 0:01:08]} 31. Be3 {[%clk 0:01:16]}  b5 {[%clk 0:00:46]} 32. Ra6 {[%clk 0:01:12]}  bxc4 {[%clk 0:00:43]} 33. bxc4 {[%clk 0:01:12]}  Bd7 {[%clk 0:00:38]} 34. Ra7 {[%clk 0:01:03]}  Kf7 {[%clk 0:00:37]} 35. c5 {[%clk 0:01:00]}  Be6 {[%clk 0:00:35]} 36. Ra4 {[%clk 0:00:51]}  Bd5 {[%clk 0:00:26]} 37. Kg1 {[%clk 0:00:49]}  Rb8 {[%clk 0:00:26]} 38. Kf1 {[%clk 0:00:38]}  Rb1+ {[%clk 0:00:26]} 39. Kf2 {[%clk 0:00:37]}  Rb2 {[%clk 0:00:26]} 40. Kf1 {[%clk 0:00:38]}  h5 {[%clk 0:00:25]} 41. g4 {[%clk 0:00:37]}  h4 {[%clk 0:00:24]} 42. Bd4 {[%clk 0:00:20]}  Bxd4 {[%clk 0:00:20]} 43. Rxd4 {[%clk 0:00:19]}  Kf6 {[%clk 0:00:20]} 44. Ke1 {[%clk 0:00:15]}  e5 {[%clk 0:00:20]} 45. g5+ {[%clk 0:00:12]}  Kf5 {[%clk 0:00:20]} 46. fxe5 {[%clk 0:00:12]}  Kxe5 {[%clk 0:00:21]} 47. Rd2 {[%clk 0:00:11]}  Rxd2 {[%clk 0:00:21]} 48. Kxd2 {[%clk 0:00:11]}  Kf4 {[%clk 0:00:21]} 49. Bg4 {[%clk 0:00:10]}  Kxg5 {[%clk 0:00:21]} 50. Ke3 {[%clk 0:00:10]}  Kf6 {[%clk 0:00:20]} 51. Bd1 {[%clk 0:00:09]}  Ke5 {[%clk 0:00:20]} 52. Bg4 {[%clk 0:00:08]}  g5 {[%clk 0:00:19]} 53. Bd7 {[%clk 0:00:07]}  Be6 {[%clk 0:00:18]} 54. Bxc6 {[%clk 0:00:07]}  Bxh3 {[%clk 0:00:17]} 55. Bxe4 {[%clk 0:00:07]}  Bc8 {[%clk 0:00:17]} 56. Ba8 {[%clk 0:00:02]}  g4 {[%clk 0:00:16]} 57. c6 {[%clk 0:00:02]}  Kd6 {[%clk 0:00:16]} 58. Bb7 {[%clk 0:00:02]}  Bxb7 {[%clk 0:00:16]} 59. cxb7 {[%clk 0:00:02]}  Kc7 {[%clk 0:00:16]} 60. Kf4 {[%clk 0:00:02]}  g3 {[%clk 0:00:17]} 61. Kf3 {[%clk 0:00:00]}  Kxb7 {[%clk 0:00:17]} 0-1


[Site "https://www.chess.com"]

[Event "Titled Tuesday Blitz June 13 Early 2023"]
[White "whiteglovethief"]
[Black "carokannlover213"]
[WhiteElo "2507"]
[BlackElo "2750"]
[Result "0-1"]
[Round "4"]
[TimeControl "180+2"]
[Date "2023.06.13"]
[WhiteClock "0:00:03"]
[BlackClock "0:00:06"]
[Board "101"]

1. d4 {[%clk 0:03:00]}  Nf6 {[%clk 0:02:56]} 2. c4 {[%clk 0:03:01]}  d6 {[%clk 0:02:56]} 3. Nc3 {[%clk 0:03:00]}  e5 {[%clk 0:02:57]} 4. dxe5 {[%clk 0:03:00]}  dxe5 {[%clk 0:02:57]} 5. Qxd8+ {[%clk 0:02:59]}  Kxd8 {[%clk 0:02:58]} 6. e4 {[%clk 0:02:59]}  Bb4 {[%clk 0:02:39]} 7. Bd3 {[%clk 0:02:59]}  Bxc3+ {[%clk 0:02:36]} 8. bxc3 {[%clk 0:03:00]}  Nfd7 {[%clk 0:02:18]} 9. f4 {[%clk 0:02:52]}  Nc5 {[%clk 0:02:05]} 10. Bc2 {[%clk 0:02:52]}  exf4 {[%clk 0:02:03]} 11. Bxf4 {[%clk 0:02:50]}  Be6 {[%clk 0:02:03]} 12. O-O-O+ {[%clk 0:02:45]}  Kc8 {[%clk 0:01:57]} 13. Nf3 {[%clk 0:02:28]}  Bxc4 {[%clk 0:01:43]} 14. Ne5 {[%clk 0:02:26]}  Bxa2 {[%clk 0:01:30]} 15. c4 {[%clk 0:02:23]}  f6 {[%clk 0:01:22]} 16. Nf7 {[%clk 0:01:51]}  Rf8 {[%clk 0:00:57]} 17. e5 {[%clk 0:01:43]}  Bxc4 {[%clk 0:00:53]} 18. Bf5+ {[%clk 0:01:20]}  Be6 {[%clk 0:00:44]} 19. exf6 {[%clk 0:00:37]}  gxf6 {[%clk 0:00:31]} 20. Nh6 {[%clk 0:00:29]}  Bxf5 {[%clk 0:00:27]} 21. Nxf5 {[%clk 0:00:30]}  Nc6 {[%clk 0:00:23]} 22. Rhe1 {[%clk 0:00:25]}  Rd8 {[%clk 0:00:23]} 23. Ne7+ {[%clk 0:00:21]}  Nxe7 {[%clk 0:00:22]} 24. Rxe7 {[%clk 0:00:21]}  Nd3+ {[%clk 0:00:19]} 25. Rxd3 {[%clk 0:00:19]}  Rxd3 {[%clk 0:00:20]} 26. Rxc7+ {[%clk 0:00:19]}  Kd8 {[%clk 0:00:20]} 27. Rxh7 {[%clk 0:00:18]}  Rc8+ {[%clk 0:00:19]} 28. Kb2 {[%clk 0:00:18]}  Rc6 {[%clk 0:00:18]} 29. g3 {[%clk 0:00:13]}  Rd5 {[%clk 0:00:17]} 30. Rxb7 {[%clk 0:00:11]}  Rb6+ {[%clk 0:00:12]} 31. Rxb6 {[%clk 0:00:11]}  axb6 {[%clk 0:00:13]} 32. h4 {[%clk 0:00:11]}  Kd7 {[%clk 0:00:10]} 33. Kc3 {[%clk 0:00:12]}  Ke6 {[%clk 0:00:08]} 34. Kc4 {[%clk 0:00:11]}  b5+ {[%clk 0:00:08]} 35. Kb4 {[%clk 0:00:11]}  Kf5 {[%clk 0:00:09]} 36. Be3 {[%clk 0:00:08]}  Kg4 {[%clk 0:00:09]} 37. Bf4 {[%clk 0:00:06]}  Rd4+ {[%clk 0:00:05]} 38. Kxb5 {[%clk 0:00:07]}  Rxf4 {[%clk 0:00:05]} 39. gxf4 {[%clk 0:00:07]}  Kxh4 {[%clk 0:00:05]} 40. Kc4 {[%clk 0:00:05]}  Kg4 {[%clk 0:00:05]} 41. f5 {[%clk 0:00:05]}  Kxf5 {[%clk 0:00:05]} 42. Kd4 {[%clk 0:00:03]}  Kf4 {[%clk 0:00:06]} 0-1


[Site "https://www.chess.com"]

[Event "Titled Tuesday Blitz June 13 Early 2023"]
[White "kuanysh1981"]
[Black "Shuvalova, Polina"]
[BlackFideId "24171760"]
[WhiteElo "2505"]
[BlackElo "2281"]
[Result "0-1"]
[Round "4"]
[TimeControl "180+2"]
[Date "2023.06.13"]
[WhiteClock "0:00:05"]
[BlackClock "0:00:09"]
[Board "102"]

1. d4 {[%clk 0:03:00]}  Nf6 {[%clk 0:02:59]} 2. Nf3 {[%clk 0:03:00]}  d5 {[%clk 0:02:59]} 3. g3 {[%clk 0:03:00]}  g6 {[%clk 0:02:53]} 4. Bg2 {[%clk 0:03:00]}  Bg7 {[%clk 0:02:54]} 5. O-O {[%clk 0:03:00]}  O-O {[%clk 0:02:55]} 6. Bf4 {[%clk 0:03:00]}  c6 {[%clk 0:02:53]} 7. Qc1 {[%clk 0:03:00]}  Bf5 {[%clk 0:02:52]} 8. c3 {[%clk 0:02:59]}  Re8 {[%clk 0:02:51]} 9. Bh6 {[%clk 0:02:59]}  Nbd7 {[%clk 0:02:51]} 10. Bxg7 {[%clk 0:02:58]}  Kxg7 {[%clk 0:02:52]} 11. Nbd2 {[%clk 0:02:58]}  Qc7 {[%clk 0:02:51]} 12. Nh4 {[%clk 0:02:56]}  Bg4 {[%clk 0:02:47]} 13. Re1 {[%clk 0:02:52]}  e5 {[%clk 0:02:47]} 14. h3 {[%clk 0:02:35]}  Be6 {[%clk 0:02:46]} 15. e4 {[%clk 0:02:12]}  exd4 {[%clk 0:02:43]} 16. cxd4 {[%clk 0:02:10]}  dxe4 {[%clk 0:02:43]} 17. Nxe4 {[%clk 0:02:01]}  Nxe4 {[%clk 0:02:43]} 18. Rxe4 {[%clk 0:02:01]}  Nf6 {[%clk 0:02:42]} 19. Re5 {[%clk 0:01:57]}  Qd7 {[%clk 0:02:41]} 20. Qf4 {[%clk 0:01:48]}  Bxh3 {[%clk 0:02:10]} 21. Rae1 {[%clk 0:01:45]}  Bxg2 {[%clk 0:02:08]} 22. Rxe8 {[%clk 0:01:44]}  Rxe8 {[%clk 0:02:04]} 23. Rxe8 {[%clk 0:01:39]}  Qxe8 {[%clk 0:01:59]} 24. Nxg2 {[%clk 0:01:30]}  Nd5 {[%clk 0:01:56]} 25. Qd6 {[%clk 0:01:28]}  Qe7 {[%clk 0:01:55]} 26. Qb8 {[%clk 0:01:28]}  a6 {[%clk 0:01:55]} 27. a3 {[%clk 0:01:23]}  h5 {[%clk 0:01:55]} 28. Qc8 {[%clk 0:01:20]}  Qc7 {[%clk 0:01:54]} 29. Qe8 {[%clk 0:01:19]}  Qe7 {[%clk 0:01:48]} 30. Qc8 {[%clk 0:01:19]}  Nb6 {[%clk 0:01:36]} 31. Qb8 {[%clk 0:01:13]}  Nc4 {[%clk 0:01:36]} 32. Nf4 {[%clk 0:01:09]}  Nd2 {[%clk 0:01:26]} 33. Nd3 {[%clk 0:00:52]}  Qe4 {[%clk 0:01:21]} 34. Qe5+ {[%clk 0:00:49]}  Qxe5 {[%clk 0:01:21]} 35. dxe5 {[%clk 0:00:50]}  Kf8 {[%clk 0:01:06]} 36. f4 {[%clk 0:00:49]}  Nc4 {[%clk 0:00:44]} 37. a4 {[%clk 0:00:41]}  Ke7 {[%clk 0:00:35]} 38. Kf2 {[%clk 0:00:37]}  b6 {[%clk 0:00:32]} 39. Kf3 {[%clk 0:00:36]}  a5 {[%clk 0:00:30]} 40. Ke4 {[%clk 0:00:36]}  Ke6 {[%clk 0:00:29]} 41. Kd4 {[%clk 0:00:32]}  Nd2 {[%clk 0:00:28]} 42. Ke3 {[%clk 0:00:30]}  Nb3 {[%clk 0:00:27]} 43. Ke4 {[%clk 0:00:27]}  b5 {[%clk 0:00:16]} 44. axb5 {[%clk 0:00:23]}  cxb5 {[%clk 0:00:17]} 45. Nf2 {[%clk 0:00:16]}  a4 {[%clk 0:00:14]} 46. Nd3 {[%clk 0:00:16]}  Nd2+ {[%clk 0:00:14]} 47. Ke3 {[%clk 0:00:16]}  Nc4+ {[%clk 0:00:14]} 48. Kd4 {[%clk 0:00:16]}  Kf5 {[%clk 0:00:13]} 49. Kc5 {[%clk 0:00:14]}  Ke4 {[%clk 0:00:06]} 50. Nb4 {[%clk 0:00:14]}  Nxb2 {[%clk 0:00:06]} 51. Kxb5 {[%clk 0:00:14]}  a3 {[%clk 0:00:06]} 52. Kc6 {[%clk 0:00:12]}  Nd3 {[%clk 0:00:05]} 53. Na2 {[%clk 0:00:11]}  Kf3 {[%clk 0:00:04]} 54. Kd6 {[%clk 0:00:10]}  Kxg3 {[%clk 0:00:04]} 55. e6 {[%clk 0:00:06]}  fxe6 {[%clk 0:00:05]} 56. Kxe6 {[%clk 0:00:06]}  Nxf4+ {[%clk 0:00:06]} 57. Kf6 {[%clk 0:00:06]}  h4 {[%clk 0:00:06]} 58. Kg5 {[%clk 0:00:06]}  h3 {[%clk 0:00:06]} 59. Nc3 {[%clk 0:00:07]}  h2 {[%clk 0:00:07]} 60. Ne4+ {[%clk 0:00:08]}  Kf3 {[%clk 0:00:07]} 61. Nd2+ {[%clk 0:00:08]}  Ke3 {[%clk 0:00:08]} 62. Nc4+ {[%clk 0:00:08]}  Ke2 {[%clk 0:00:08]} 63. Nxa3 {[%clk 0:00:05]}  h1=Q {[%clk 0:00:09]} 0-1


[Site "https://www.chess.com"]

[Event "Titled Tuesday Blitz June 13 Early 2023"]
[White "Postny, Evgeny"]
[Black "Santos Flores, Alberto"]
[WhiteFideId "2804344"]
[BlackFideId "3601234"]
[WhiteElo "2504"]
[BlackElo "2235"]
[Result "1/2-1/2"]
[Round "4"]
[TimeControl "180+2"]
[Date "2023.06.13"]
[WhiteClock "0:00:10"]
[BlackClock "0:00:11"]
[Board "104"]

1. e4 {[%clk 0:02:58]}  e6 {[%clk 0:02:57]} 2. d4 {[%clk 0:02:57]}  d5 {[%clk 0:02:58]} 3. Nd2 {[%clk 0:02:57]}  c5 {[%clk 0:02:57]} 4. exd5 {[%clk 0:02:56]}  Qxd5 {[%clk 0:02:57]} 5. Ngf3 {[%clk 0:02:55]}  cxd4 {[%clk 0:02:57]} 6. Bc4 {[%clk 0:02:55]}  Qd6 {[%clk 0:02:58]} 7. O-O {[%clk 0:02:55]}  Nf6 {[%clk 0:02:58]} 8. Nb3 {[%clk 0:02:54]}  Nc6 {[%clk 0:02:59]} 9. Nfxd4 {[%clk 0:02:54]}  Nxd4 {[%clk 0:02:59]} 10. Qxd4 {[%clk 0:02:55]}  Qxd4 {[%clk 0:02:59]} 11. Nxd4 {[%clk 0:02:55]}  Bd7 {[%clk 0:02:59]} 12. Be2 {[%clk 0:02:54]}  Bc5 {[%clk 0:02:51]} 13. Nb3 {[%clk 0:02:53]}  Bb6 {[%clk 0:02:51]} 14. Bf3 {[%clk 0:02:54]}  O-O-O {[%clk 0:02:51]} 15. a4 {[%clk 0:02:51]}  a6 {[%clk 0:02:49]} 16. Bf4 {[%clk 0:02:36]}  Bc7 {[%clk 0:02:48]} 17. Be3 {[%clk 0:02:35]}  Be8 {[%clk 0:02:29]} 18. Rfd1 {[%clk 0:02:30]}  Rxd1+ {[%clk 0:02:27]} 19. Rxd1 {[%clk 0:02:30]}  Bxa4 {[%clk 0:02:19]} 20. Bxb7+ {[%clk 0:02:26]}  Kxb7 {[%clk 0:02:20]} 21. Nc5+ {[%clk 0:02:26]}  Kc6 {[%clk 0:02:18]} 22. Nxa4 {[%clk 0:02:27]}  Rd8 {[%clk 0:02:08]} 23. Rxd8 {[%clk 0:02:25]}  Bxd8 {[%clk 0:02:09]} 24. c4 {[%clk 0:02:25]}  Nd7 {[%clk 0:01:57]} 25. Kf1 {[%clk 0:02:22]}  e5 {[%clk 0:01:55]} 26. Ke2 {[%clk 0:02:16]}  f5 {[%clk 0:01:55]} 27. f3 {[%clk 0:02:17]}  Nb6 {[%clk 0:01:28]} 28. Bxb6 {[%clk 0:01:46]}  Bxb6 {[%clk 0:01:29]} 29. Kd3 {[%clk 0:01:34]}  a5 {[%clk 0:01:28]} 30. g4 {[%clk 0:01:22]}  g6 {[%clk 0:01:28]} 31. b3 {[%clk 0:01:18]}  Bd4 {[%clk 0:01:26]} 32. gxf5 {[%clk 0:01:16]}  gxf5 {[%clk 0:01:26]} 33. f4 {[%clk 0:01:16]}  h6 {[%clk 0:01:14]} 34. h3 {[%clk 0:01:14]}  h5 {[%clk 0:01:14]} 35. fxe5 {[%clk 0:01:12]}  Bxe5 {[%clk 0:01:14]} 36. Nc3 {[%clk 0:01:10]}  Bxc3 {[%clk 0:00:54]} 37. Kxc3 {[%clk 0:01:11]}  Kc5 {[%clk 0:00:55]} 38. h4 {[%clk 0:00:58]}  f4 {[%clk 0:00:54]} 39. Kd3 {[%clk 0:00:59]}  Kb4 {[%clk 0:00:54]} 40. Ke4 {[%clk 0:00:50]}  Kxb3 {[%clk 0:00:49]} 41. c5 {[%clk 0:00:50]}  a4 {[%clk 0:00:49]} 42. c6 {[%clk 0:00:51]}  a3 {[%clk 0:00:50]} 43. c7 {[%clk 0:00:51]}  a2 {[%clk 0:00:50]} 44. c8=Q {[%clk 0:00:52]}  a1=Q {[%clk 0:00:50]} 45. Qe6+ {[%clk 0:00:37]}  Kc2 {[%clk 0:00:47]} 46. Qc4+ {[%clk 0:00:36]}  Kd2 {[%clk 0:00:43]} 47. Qd3+ {[%clk 0:00:34]}  Ke1 {[%clk 0:00:39]} 48. Kxf4 {[%clk 0:00:29]}  Qf6+ {[%clk 0:00:37]} 49. Kg3 {[%clk 0:00:25]}  Qf2+ {[%clk 0:00:35]} 50. Kh3 {[%clk 0:00:24]}  Qc5 {[%clk 0:00:15]} 51. Qe4+ {[%clk 0:00:17]}  Kf2 {[%clk 0:00:15]} 52. Qg2+ {[%clk 0:00:17]}  Ke1 {[%clk 0:00:14]} 53. Qg3+ {[%clk 0:00:16]}  Ke2 {[%clk 0:00:13]} 54. Qg2+ {[%clk 0:00:14]}  Qf2 {[%clk 0:00:12]} 55. Qg5 {[%clk 0:00:08]}  Qf3+ {[%clk 0:00:11]} 56. Kh2 {[%clk 0:00:08]}  Qf2+ {[%clk 0:00:10]} 57. Kh3 {[%clk 0:00:08]}  Qf3+ {[%clk 0:00:10]} 58. Kh2 {[%clk 0:00:09]}  Qf2+ {[%clk 0:00:11]} 59. Kh3 {[%clk 0:00:10]} 1/2-1/2


[Site "https://www.chess.com"]

[Event "Titled Tuesday Blitz June 13 Early 2023"]
[White "gueraumasague"]
[Black "Rastbod, Ali"]
[BlackFideId "12567477"]
[WhiteElo "2498"]
[BlackElo "2281"]
[Result "0-1"]
[Round "4"]
[TimeControl "180+2"]
[Date "2023.06.13"]
[WhiteClock "0:00:00"]
[BlackClock "0:00:17"]
[Board "106"]

1. e4 {[%clk 0:03:00]}  c6 {[%clk 0:03:00]} 2. Nc3 {[%clk 0:03:01]}  d5 {[%clk 0:03:00]} 3. Qf3 {[%clk 0:03:01]}  dxe4 {[%clk 0:02:42]} 4. Nxe4 {[%clk 0:03:02]}  Nf6 {[%clk 0:02:42]} 5. Bc4 {[%clk 0:03:02]}  Nbd7 {[%clk 0:02:42]} 6. d4 {[%clk 0:03:01]}  Nb6 {[%clk 0:02:39]} 7. Nxf6+ {[%clk 0:02:43]}  gxf6 {[%clk 0:02:38]} 8. Bb3 {[%clk 0:02:36]}  Qxd4 {[%clk 0:02:38]} 9. Ne2 {[%clk 0:02:09]}  Qg4 {[%clk 0:02:24]} 10. Qxg4 {[%clk 0:02:06]}  Bxg4 {[%clk 0:02:23]} 11. Nf4 {[%clk 0:02:06]}  O-O-O {[%clk 0:02:11]} 12. f3 {[%clk 0:01:59]}  Bf5 {[%clk 0:02:08]} 13. Bxf7 {[%clk 0:01:55]}  e5 {[%clk 0:02:08]} 14. Nd3 {[%clk 0:01:39]}  Bxd3 {[%clk 0:01:52]} 15. cxd3 {[%clk 0:01:40]}  Rxd3 {[%clk 0:01:48]} 16. Ke2 {[%clk 0:01:40]}  Rd8 {[%clk 0:01:45]} 17. Be3 {[%clk 0:01:33]}  Kc7 {[%clk 0:01:39]} 18. Rac1 {[%clk 0:01:23]}  Nd5 {[%clk 0:01:17]} 19. Bd2 {[%clk 0:01:21]}  h5 {[%clk 0:00:58]} 20. h4 {[%clk 0:01:20]}  Bh6 {[%clk 0:00:57]} 21. Bxh6 {[%clk 0:01:01]}  Rxh6 {[%clk 0:00:58]} 22. g3 {[%clk 0:01:02]}  Rh7 {[%clk 0:00:53]} 23. Be6 {[%clk 0:01:00]}  Rd6 {[%clk 0:00:47]} 24. Bf5 {[%clk 0:00:59]}  Rg7 {[%clk 0:00:48]} 25. Rhg1 {[%clk 0:00:52]}  Ne7 {[%clk 0:00:47]} 26. Bc2 {[%clk 0:00:42]}  Rd4 {[%clk 0:00:40]} 27. Ke3 {[%clk 0:00:34]}  f5 {[%clk 0:00:34]} 28. Bb3 {[%clk 0:00:14]}  Rxg3 {[%clk 0:00:26]} 29. Rxg3 {[%clk 0:00:13]}  f4+ {[%clk 0:00:27]} 30. Kf2 {[%clk 0:00:14]}  fxg3+ {[%clk 0:00:27]} 31. Kxg3 {[%clk 0:00:15]}  Nf5+ {[%clk 0:00:28]} 32. Kf2 {[%clk 0:00:15]}  Rd2+ {[%clk 0:00:28]} 33. Ke1 {[%clk 0:00:08]}  Rxb2 {[%clk 0:00:29]} 34. Rc4 {[%clk 0:00:07]}  Nd4 {[%clk 0:00:25]} 35. Bd1 {[%clk 0:00:07]}  b5 {[%clk 0:00:23]} 36. Rc5 {[%clk 0:00:06]}  Kd6 {[%clk 0:00:23]} 37. Rc3 {[%clk 0:00:04]}  Rxa2 {[%clk 0:00:24]} 38. Rd3 {[%clk 0:00:03]}  c5 {[%clk 0:00:23]} 39. Re3 {[%clk 0:00:02]}  Rh2 {[%clk 0:00:19]} 40. Re4 {[%clk 0:00:02]}  Ne6 {[%clk 0:00:17]} 41. Be2 {[%clk 0:00:01]}  c4 {[%clk 0:00:17]} 42. Bd1 {[%clk 0:00:02]}  Nf4 {[%clk 0:00:17]} 43. Re3 {[%clk 0:00:00]}  Ng2+ {[%clk 0:00:17]} 0-1


[Site "https://www.chess.com"]

[Event "Titled Tuesday Blitz June 13 Early 2023"]
[White "Perera Alfonso, Rene Humberto"]
[Black "Fus, Jakub"]
[WhiteFideId "3514722"]
[BlackFideId "1193023"]
[WhiteElo "2313"]
[BlackElo "2335"]
[Result "1-0"]
[Round "4"]
[TimeControl "180+2"]
[Date "2023.06.13"]
[WhiteClock "0:00:54"]
[BlackClock "0:00:47"]
[Board "107"]

1. e4 {[%clk 0:02:57]}  e6 {[%clk 0:02:54]} 2. d4 {[%clk 0:02:55]}  d5 {[%clk 0:02:54]} 3. Nc3 {[%clk 0:02:48]}  Nf6 {[%clk 0:02:54]} 4. e5 {[%clk 0:02:36]}  Nfd7 {[%clk 0:02:54]} 5. f4 {[%clk 0:02:37]}  c5 {[%clk 0:02:55]} 6. Nf3 {[%clk 0:02:33]}  a6 {[%clk 0:02:55]} 7. Be2 {[%clk 0:02:30]}  Nc6 {[%clk 0:02:48]} 8. Be3 {[%clk 0:02:30]}  Qb6 {[%clk 0:02:44]} 9. Na4 {[%clk 0:02:30]}  Qa5+ {[%clk 0:02:44]} 10. c3 {[%clk 0:02:29]}  cxd4 {[%clk 0:02:44]} 11. b4 {[%clk 0:02:29]}  Qc7 {[%clk 0:02:03]} 12. Nxd4 {[%clk 0:02:25]}  b5 {[%clk 0:01:57]} 13. Nb2 {[%clk 0:02:24]}  Nb6 {[%clk 0:01:49]} 14. O-O {[%clk 0:02:20]}  Nc4 {[%clk 0:01:46]} 15. Nxc4 {[%clk 0:02:18]}  dxc4 {[%clk 0:01:45]} 16. a4 {[%clk 0:02:17]}  Nxd4 {[%clk 0:01:43]} 17. Bxd4 {[%clk 0:02:17]}  Bb7 {[%clk 0:01:43]} 18. f5 {[%clk 0:02:17]}  exf5 {[%clk 0:01:38]} 19. Rxf5 {[%clk 0:02:18]}  Be7 {[%clk 0:01:37]} 20. Bf3 {[%clk 0:01:53]}  O-O {[%clk 0:01:33]} 21. Bxb7 {[%clk 0:01:52]}  Qxb7 {[%clk 0:01:34]} 22. Qg4 {[%clk 0:01:51]}  Rad8 {[%clk 0:01:23]} 23. Raf1 {[%clk 0:01:38]}  Qd5 {[%clk 0:01:06]} 24. e6 {[%clk 0:01:10]}  f6 {[%clk 0:00:54]} 25. Rxd5 {[%clk 0:01:05]}  Rxd5 {[%clk 0:00:55]} 26. axb5 {[%clk 0:01:05]}  axb5 {[%clk 0:00:54]} 27. Rf5 {[%clk 0:00:59]}  Rfd8 {[%clk 0:00:52]} 28. Rxd5 {[%clk 0:00:58]}  Rxd5 {[%clk 0:00:53]} 29. Qe4 {[%clk 0:00:58]}  Rd6 {[%clk 0:00:50]} 30. Qa8+ {[%clk 0:00:56]}  Rd8 {[%clk 0:00:50]} 31. Qb7 {[%clk 0:00:54]}  Kf8 {[%clk 0:00:47]} 32. Bc5 {[%clk 0:00:54]} 1-0


[Site "https://www.chess.com"]

[Event "Titled Tuesday Blitz June 13 Early 2023"]
[White "Taboas Rodriguez, Daniel"]
[Black "Manukyan, Sargis V."]
[WhiteFideId "2208466"]
[BlackFideId "13303465"]
[WhiteElo "2365"]
[BlackElo "2236"]
[Result "1-0"]
[Round "4"]
[TimeControl "180+2"]
[Date "2023.06.13"]
[WhiteClock "0:01:28"]
[BlackClock "0:00:00"]
[Board "108"]

1. d4 {[%clk 0:03:00]}  e6 {[%clk 0:02:56]} 2. Nf3 {[%clk 0:02:59]}  c5 {[%clk 0:02:55]} 3. e3 {[%clk 0:02:59]}  Nf6 {[%clk 0:02:55]} 4. Bd3 {[%clk 0:02:57]}  Nc6 {[%clk 0:02:54]} 5. O-O {[%clk 0:02:57]}  d5 {[%clk 0:02:51]} 6. b3 {[%clk 0:02:58]}  cxd4 {[%clk 0:02:47]} 7. exd4 {[%clk 0:02:57]}  Bd6 {[%clk 0:02:48]} 8. Bb2 {[%clk 0:02:57]}  O-O {[%clk 0:02:45]} 9. Nbd2 {[%clk 0:02:57]}  Qc7 {[%clk 0:02:37]} 10. a3 {[%clk 0:02:54]}  Rb8 {[%clk 0:02:05]} 11. Qe2 {[%clk 0:02:51]}  Ne7 {[%clk 0:01:55]} 12. Ne5 {[%clk 0:02:49]}  Ng6 {[%clk 0:01:54]} 13. f4 {[%clk 0:02:46]}  Bd7 {[%clk 0:01:32]} 14. Rf3 {[%clk 0:02:45]}  a6 {[%clk 0:01:27]} 15. Rh3 {[%clk 0:02:29]}  Bb5 {[%clk 0:01:25]} 16. c4 {[%clk 0:02:28]}  dxc4 {[%clk 0:01:23]} 17. bxc4 {[%clk 0:02:29]}  Ba4 {[%clk 0:00:56]} 18. Rf1 {[%clk 0:02:27]}  Rfd8 {[%clk 0:00:31]} 19. Ne4 {[%clk 0:02:18]}  Nxe4 {[%clk 0:00:26]} 20. Bxe4 {[%clk 0:02:11]}  Bxe5 {[%clk 0:00:15]} 21. fxe5 {[%clk 0:02:08]}  Qb6 {[%clk 0:00:13]} 22. c5 {[%clk 0:01:53]}  Qb5 {[%clk 0:00:11]} 23. Qh5 {[%clk 0:01:53]}  Qxb2 {[%clk 0:00:09]} 24. Qxh7+ {[%clk 0:01:53]}  Kf8 {[%clk 0:00:09]} 25. Rxf7+ {[%clk 0:01:30]}  Ke8 {[%clk 0:00:00]} 26. Qg8+ {[%clk 0:01:28]} 1-0


[Site "https://www.chess.com"]